[Event "January 9 Early 2024"]
[Site "https://www.chess.com"]
[Date "2024.01.11"]
[Round "9"]
[White "Mizzi, Jack"]
[Black "Shkapenko, Pavel"]
[Result "1/2-1/2"]
[Board "219"]
[TimeControl "180+1"]
[WhiteFideId "5602521"]
[BlackFideId "4151933"]
[WhiteElo "2503"]
[BlackElo "2731"]
[WhiteTeam "MLT"]
[BlackTeam "FID"]
[WhiteClock "0:00:04"]
[BlackClock "0:00:20"]

1. d4 {[%clk 0:03:00]}  Nf6 {[%clk 0:02:50]} 2. c4 {[%clk 0:03:00]}  e6 {[%clk 0:02:50]} 3. g3 {[%clk 0:03:00]}  Bb4+ {[%clk 0:02:51]} 4. Nd2 {[%clk 0:03:00]}  O-O {[%clk 0:02:49]} 5. Bg2 {[%clk 0:03:00]}  d5 {[%clk 0:02:49]} 6. Qc2 {[%clk 0:03:00]}  b6 {[%clk 0:02:48]} 7. Nf3 {[%clk 0:02:59]}  Nbd7 {[%clk 0:02:48]} 8. O-O {[%clk 0:02:56]}  Re8 {[%clk 0:02:48]} 9. e4 {[%clk 0:02:53]}  Bb7 {[%clk 0:02:48]} 10. cxd5 {[%clk 0:02:48]}  exd5 {[%clk 0:02:46]} 11. e5 {[%clk 0:02:49]}  Bxd2 {[%clk 0:02:22]} 12. Nxd2 {[%clk 0:02:30]}  Ne4 {[%clk 0:02:17]} 13. Nxe4 {[%clk 0:02:27]}  dxe4 {[%clk 0:02:18]} 14. Bxe4 {[%clk 0:02:26]}  Bxe4 {[%clk 0:02:18]} 15. Qxe4 {[%clk 0:02:26]}  c5 {[%clk 0:02:18]} 16. Be3 {[%clk 0:02:15]}  Nf6 {[%clk 0:01:44]} 17. Qf3 {[%clk 0:02:07]}  cxd4 {[%clk 0:01:30]} 18. exf6 {[%clk 0:02:06]}  dxe3 {[%clk 0:01:30]} 19. fxe3 {[%clk 0:02:01]}  Qxf6 {[%clk 0:01:25]} 20. Qxf6 {[%clk 0:01:52]}  gxf6 {[%clk 0:01:25]} 21. Rxf6 {[%clk 0:01:52]}  Rxe3 {[%clk 0:01:25]} 22. Raf1 {[%clk 0:01:52]}  Rf8 {[%clk 0:01:21]} 23. R6f4 {[%clk 0:01:46]}  Re7 {[%clk 0:01:18]} 24. Rg4+ {[%clk 0:01:32]}  Kh8 {[%clk 0:01:18]} 25. Rf6 {[%clk 0:01:28]}  Re1+ {[%clk 0:01:08]} 26. Kg2 {[%clk 0:01:26]}  Re2+ {[%clk 0:01:06]} 27. Rf2 {[%clk 0:00:54]}  Rfe8 {[%clk 0:01:06]} 28. Rf4 {[%clk 0:00:51]}  Rxf2+ {[%clk 0:01:06]} 29. Kxf2 {[%clk 0:00:51]}  Kg7 {[%clk 0:01:07]} 30. Rd4 {[%clk 0:00:47]}  Rc8 {[%clk 0:01:05]} 31. Rd2 {[%clk 0:00:42]}  Kf6 {[%clk 0:01:05]} 32. Kf3 {[%clk 0:00:42]}  Ke6 {[%clk 0:01:03]} 33. Kg4 {[%clk 0:00:36]}  Rc5 {[%clk 0:01:02]} 34. h4 {[%clk 0:00:30]}  h5+ {[%clk 0:01:01]} 35. Kf4 {[%clk 0:00:28]}  f6 {[%clk 0:00:59]} 36. Re2+ {[%clk 0:00:26]}  Kf7 {[%clk 0:00:58]} 37. Rd2 {[%clk 0:00:24]}  Kg6 {[%clk 0:00:57]} 38. Rd7 {[%clk 0:00:18]}  Rc2 {[%clk 0:00:50]} 39. Rxa7 {[%clk 0:00:17]}  Rxb2 {[%clk 0:00:50]} 40. Ra6 {[%clk 0:00:11]}  Rb4+ {[%clk 0:00:48]} 41. Kf3 {[%clk 0:00:11]}  Kf5 {[%clk 0:00:49]} 42. Ra3 {[%clk 0:00:09]}  Rc4 {[%clk 0:00:25]} 43. Rb3 {[%clk 0:00:09]}  Rc6 {[%clk 0:00:25]} 44. Rb5+ {[%clk 0:00:08]}  Kg6 {[%clk 0:00:26]} 45. a4 {[%clk 0:00:07]}  Rc3+ {[%clk 0:00:25]} 46. Kf4 {[%clk 0:00:05]}  Rc4+ {[%clk 0:00:25]} 47. Kf3 {[%clk 0:00:05]}  Rxa4 {[%clk 0:00:25]} 48. Rxb6 {[%clk 0:00:06]}  Ra5 {[%clk 0:00:26]} 49. Rb3 {[%clk 0:00:05]}  Kf5 {[%clk 0:00:26]} 50. Rc3 {[%clk 0:00:05]}  Rd5 {[%clk 0:00:26]} 51. Rb3 {[%clk 0:00:05]}  Rd1 {[%clk 0:00:26]} 52. Ra3 {[%clk 0:00:05]}  Rb1 {[%clk 0:00:26]} 53. Rc3 {[%clk 0:00:05]}  Rf1+ {[%clk 0:00:25]} 54. Kg2 {[%clk 0:00:05]}  Re1 {[%clk 0:00:25]} 55. Kf3 {[%clk 0:00:06]}  Kg6 {[%clk 0:00:24]} 56. Rc5 {[%clk 0:00:05]}  Ra1 {[%clk 0:00:23]} 57. Rb5 {[%clk 0:00:05]}  Ra3+ {[%clk 0:00:23]} 58. Kg2 {[%clk 0:00:05]}  Re3 {[%clk 0:00:22]} 59. Ra5 {[%clk 0:00:05]}  Re5 {[%clk 0:00:21]} 60. Ra8 {[%clk 0:00:03]}  Kf5 {[%clk 0:00:21]} 61. Kf3 {[%clk 0:00:04]}  Rb5 {[%clk 0:00:20]} 62. Rc8 {[%clk 0:00:04]}  Rb3+ {[%clk 0:00:20]} 63. Kg2 {[%clk 0:00:03]}  Rb4 {[%clk 0:00:20]} 64. Kf3 {[%clk 0:00:03]}  Rb3+ {[%clk 0:00:20]} 65. Kg2 {[%clk 0:00:04]}  Re3 {[%clk 0:00:20]} 66. Rc5+ {[%clk 0:00:03]}  Re5 {[%clk 0:00:21]} 67. Rc4 {[%clk 0:00:03]}  Re4 {[%clk 0:00:21]} 68. Rc5+ {[%clk 0:00:04]}  Kg4 {[%clk 0:00:20]} 69. Rc3 {[%clk 0:00:04]}  Re2+ {[%clk 0:00:20]} 70. Kf1 {[%clk 0:00:04]}  Ra2 {[%clk 0:00:20]} 71. Rc6 {[%clk 0:00:04]}  Kxg3 {[%clk 0:00:19]} 72. Rxf6 {[%clk 0:00:04]}  Kxh4 {[%clk 0:00:19]} 73. Rg6 {[%clk 0:00:04]}  Kh3 {[%clk 0:00:19]} 74. Rg8 {[%clk 0:00:04]}  h4 {[%clk 0:00:20]} 75. Rg7 {[%clk 0:00:04]}  Kh2 {[%clk 0:00:20]} 76. Rg8 {[%clk 0:00:04]}  h3 {[%clk 0:00:20]} 77. Rg7 {[%clk 0:00:04]}  Rg2 {[%clk 0:00:20]} 78. Rh7 {[%clk 0:00:05]}  Rg5 {[%clk 0:00:18]} 79. Rh8 {[%clk 0:00:03]}  Rf5+ {[%clk 0:00:18]} 80. Ke2 {[%clk 0:00:03]}  Rg5 {[%clk 0:00:15]} 81. Kf2 {[%clk 0:00:03]}  Rg2+ {[%clk 0:00:15]} 82. Kf1 {[%clk 0:00:03]}  Rg4 {[%clk 0:00:15]} 83. Kf2 {[%clk 0:00:03]}  Rf4+ {[%clk 0:00:15]} 84. Ke3 {[%clk 0:00:04]}  Rf7 {[%clk 0:00:15]} 85. Rg8 {[%clk 0:00:03]}  Kh1 {[%clk 0:00:14]} 86. Rg6 {[%clk 0:00:04]}  Rf1 {[%clk 0:00:14]} 87. Rg8 {[%clk 0:00:04]}  Rg1 {[%clk 0:00:15]} 88. Rh8 {[%clk 0:00:04]}  Kg2 {[%clk 0:00:15]} 89. Rg8+ {[%clk 0:00:04]}  Kh2 {[%clk 0:00:15]} 90. Rh8 {[%clk 0:00:04]}  Rg2 {[%clk 0:00:15]} 91. Kf3 {[%clk 0:00:04]}  Rd2 {[%clk 0:00:15]} 92. Rh7 {[%clk 0:00:04]}  Rd3+ {[%clk 0:00:15]} 93. Kf2 {[%clk 0:00:04]}  Rb3 {[%clk 0:00:16]} 94. Rg7 {[%clk 0:00:04]}  Rb2+ {[%clk 0:00:16]} 95. Kf1 {[%clk 0:00:04]}  Rg2 {[%clk 0:00:16]} 96. Rh7 {[%clk 0:00:05]}  Rg5 {[%clk 0:00:17]} 97. Rh8 {[%clk 0:00:04]}  Rf5+ {[%clk 0:00:17]} 98. Ke2 {[%clk 0:00:04]}  Rf4 {[%clk 0:00:18]} 99. Ke3 {[%clk 0:00:05]}  Kg2 {[%clk 0:00:18]} 100. Kxf4 {[%clk 0:00:04]}  h2 {[%clk 0:00:18]} 101. Rg8+ {[%clk 0:00:04]}  Kf2 {[%clk 0:00:19]} 102. Rh8 {[%clk 0:00:04]}  Kg2 {[%clk 0:00:19]} 103. Rxh2+ {[%clk 0:00:04]}  Kxh2 {[%clk 0:00:20]} 1/2-1/2

[Event "January 9 Early 2024"]
[Site "https://www.chess.com"]
[Date "2024.01.11"]
[Round "9"]
[White "Yushko, Olga"]
[Black "Smirnov, Timofey"]
[Result "0-1"]
[Board "221"]
[TimeControl "180+1"]
[WhiteFideId "14114500"]
[BlackFideId "24176427"]
[WhiteElo "2094"]
[BlackElo "2002"]
[WhiteTeam "UKR"]
[BlackTeam "RUS"]
[WhiteClock "0:00:05"]
[BlackClock "0:00:02"]

1. d4 {[%clk 0:02:59]}  d5 {[%clk 0:02:58]} 2. c4 {[%clk 0:03:00]}  c6 {[%clk 0:02:58]} 3. Nc3 {[%clk 0:02:59]}  Nf6 {[%clk 0:02:57]} 4. cxd5 {[%clk 0:02:59]}  cxd5 {[%clk 0:02:56]} 5. Nf3 {[%clk 0:02:59]}  Nc6 {[%clk 0:02:57]} 6. Bf4 {[%clk 0:03:00]}  a6 {[%clk 0:02:52]} 7. e3 {[%clk 0:03:00]}  Bg4 {[%clk 0:02:45]} 8. Be2 {[%clk 0:02:59]}  Bxf3 {[%clk 0:02:44]} 9. Bxf3 {[%clk 0:02:59]}  e6 {[%clk 0:02:45]} 10. O-O {[%clk 0:02:58]}  Bd6 {[%clk 0:02:45]} 11. Bg5 {[%clk 0:02:57]}  h6 {[%clk 0:02:44]} 12. Bh4 {[%clk 0:02:57]}  Be7 {[%clk 0:02:44]} 13. Rb1 {[%clk 0:02:55]}  O-O {[%clk 0:02:43]} 14. a3 {[%clk 0:02:49]}  b5 {[%clk 0:02:43]} 15. Rc1 {[%clk 0:02:47]}  Na5 {[%clk 0:02:42]} 16. Bxf6 {[%clk 0:02:27]}  Bxf6 {[%clk 0:02:42]} 17. e4 {[%clk 0:02:27]}  dxe4 {[%clk 0:02:39]} 18. Nxe4 {[%clk 0:02:27]}  Rb8 {[%clk 0:02:11]} 19. Nc5 {[%clk 0:02:00]}  Rb6 {[%clk 0:01:48]} 20. b4 {[%clk 0:01:37]}  Nc4 {[%clk 0:01:41]} 21. Rxc4 {[%clk 0:01:05]}  bxc4 {[%clk 0:01:41]} 22. d5 {[%clk 0:01:01]}  exd5 {[%clk 0:01:35]} 23. Qxd5 {[%clk 0:01:01]}  Qxd5 {[%clk 0:01:30]} 24. Bxd5 {[%clk 0:01:02]}  Rd8 {[%clk 0:01:27]} 25. Bxc4 {[%clk 0:00:59]}  a5 {[%clk 0:01:19]} 26. bxa5 {[%clk 0:00:56]}  Rc6 {[%clk 0:01:17]} 27. Nb7 {[%clk 0:00:38]}  Rxc4 {[%clk 0:01:03]} 28. Nxd8 {[%clk 0:00:33]}  Bxd8 {[%clk 0:01:04]} 29. a6 {[%clk 0:00:32]}  Ra4 {[%clk 0:01:02]} 30. Rd1 {[%clk 0:00:24]}  Be7 {[%clk 0:01:01]} 31. Rd7 {[%clk 0:00:22]}  Rxa3 {[%clk 0:00:52]} 32. g3 {[%clk 0:00:19]}  Bc5 {[%clk 0:00:51]} 33. Kg2 {[%clk 0:00:17]}  Rxa6 {[%clk 0:00:50]} 34. Rd2 {[%clk 0:00:17]}  Rf6 {[%clk 0:00:47]} 35. Re2 {[%clk 0:00:17]}  Re6 {[%clk 0:00:45]} 36. Rc2 {[%clk 0:00:17]}  Bb4 {[%clk 0:00:39]} 37. Rb2 {[%clk 0:00:17]}  Be1 {[%clk 0:00:38]} 38. Rc2 {[%clk 0:00:17]}  Kh7 {[%clk 0:00:32]} 39. Kf1 {[%clk 0:00:17]}  Bb4 {[%clk 0:00:29]} 40. Kg2 {[%clk 0:00:17]}  f6 {[%clk 0:00:26]} 41. Rb2 {[%clk 0:00:17]}  Bc5 {[%clk 0:00:22]} 42. Rc2 {[%clk 0:00:17]}  Bd4 {[%clk 0:00:20]} 43. Rd2 {[%clk 0:00:17]}  Ba1 {[%clk 0:00:16]} 44. Ra2 {[%clk 0:00:16]}  Re1 {[%clk 0:00:15]} 45. Kf3 {[%clk 0:00:14]}  Bd4 {[%clk 0:00:13]} 46. Kg2 {[%clk 0:00:13]}  Be5 {[%clk 0:00:08]} 47. Rc2 {[%clk 0:00:12]}  Rd1 {[%clk 0:00:08]} 48. Kf3 {[%clk 0:00:11]}  Rb1 {[%clk 0:00:07]} 49. Kg2 {[%clk 0:00:10]}  Rb2 {[%clk 0:00:07]} 50. Rc4 {[%clk 0:00:08]}  Ra2 {[%clk 0:00:06]} 51. Kf3 {[%clk 0:00:06]}  Kg6 {[%clk 0:00:05]} 52. Ke3 {[%clk 0:00:04]}  Ra8 {[%clk 0:00:04]} 53. Rc2 {[%clk 0:00:03]}  Re8 {[%clk 0:00:04]} 54. Kf3 {[%clk 0:00:04]}  h5 {[%clk 0:00:04]} 55. Kg2 {[%clk 0:00:03]}  Bd6 {[%clk 0:00:04]} 56. h4 {[%clk 0:00:04]}  Re5 {[%clk 0:00:04]} 57. Kf3 {[%clk 0:00:04]}  Rf5+ {[%clk 0:00:04]} 58. Kg2 {[%clk 0:00:04]}  Be5 {[%clk 0:00:03]} 59. Rd2 {[%clk 0:00:04]}  Bc3 {[%clk 0:00:03]} 60. Rc2 {[%clk 0:00:05]}  Be1 {[%clk 0:00:02]} 61. Re2 {[%clk 0:00:05]}  Ba5 {[%clk 0:00:02]} 62. Ra2 {[%clk 0:00:06]}  Bb6 {[%clk 0:00:02]} 63. Rb2 {[%clk 0:00:06]}  Bc7 {[%clk 0:00:03]} 64. Rc2 {[%clk 0:00:06]}  Bd6 {[%clk 0:00:03]} 65. Rd2 {[%clk 0:00:06]}  Be5 {[%clk 0:00:03]} 66. Re2 {[%clk 0:00:06]}  Bc3 {[%clk 0:00:03]} 67. Rc2 {[%clk 0:00:07]}  Rc5 {[%clk 0:00:04]} 68. Ra2 {[%clk 0:00:07]}  Bd4 {[%clk 0:00:04]} 69. Rd2 {[%clk 0:00:07]}  Kf5 {[%clk 0:00:04]} 70. Rxd4 {[%clk 0:00:07]}  Re5 {[%clk 0:00:02]} 71. Rf4+ {[%clk 0:00:07]}  Kg6 {[%clk 0:00:02]} 72. Kf3 {[%clk 0:00:07]}  Re6 {[%clk 0:00:03]} 73. Ra4 {[%clk 0:00:07]}  Re5 {[%clk 0:00:03]} 74. Ra7 {[%clk 0:00:07]}  Rf5+ {[%clk 0:00:04]} 75. Ke3 {[%clk 0:00:08]}  Re5+ {[%clk 0:00:04]} 76. Kf4 {[%clk 0:00:08]}  Rf5+ {[%clk 0:00:04]} 77. Ke3 {[%clk 0:00:08]}  Re5+ {[%clk 0:00:05]} 78. Kf3 {[%clk 0:00:09]}  Rf5+ {[%clk 0:00:05]} 79. Kg2 {[%clk 0:00:09]}  Rb5 {[%clk 0:00:05]} 80. Ra2 {[%clk 0:00:08]}  Rc5 {[%clk 0:00:05]} 81. Rd2 {[%clk 0:00:08]}  Re5 {[%clk 0:00:05]} 82. Rd7 {[%clk 0:00:08]}  Rf5 {[%clk 0:00:06]} 83. f3 {[%clk 0:00:08]}  Re5 {[%clk 0:00:05]} 84. g4 {[%clk 0:00:08]}  hxg4 {[%clk 0:00:05]} 85. fxg4 {[%clk 0:00:09]}  Re4 {[%clk 0:00:05]} 86. Kf3 {[%clk 0:00:09]}  Ra4 {[%clk 0:00:04]} 87. Rd8 {[%clk 0:00:08]}  Ra3+ {[%clk 0:00:04]} 88. Kf4 {[%clk 0:00:09]}  Ra4+ {[%clk 0:00:05]} 89. Kg3 {[%clk 0:00:09]}  Ra3+ {[%clk 0:00:05]} 90. Kf2 {[%clk 0:00:10]}  Ra2+ {[%clk 0:00:06]} 91. Ke3 {[%clk 0:00:10]}  Ra3+ {[%clk 0:00:06]} 92. Kf4 {[%clk 0:00:08]}  Ra4+ {[%clk 0:00:07]} 93. Kf3 {[%clk 0:00:08]}  Ra3+ {[%clk 0:00:07]} 94. Ke2 {[%clk 0:00:08]}  Ra2+ {[%clk 0:00:08]} 95. Ke3 {[%clk 0:00:08]}  Ra3+ {[%clk 0:00:08]} 96. Ke4 {[%clk 0:00:09]}  Ra4+ {[%clk 0:00:08]} 97. Rd4 {[%clk 0:00:06]}  Rxd4+ {[%clk 0:00:04]} 98. Kxd4 {[%clk 0:00:07]}  f5 {[%clk 0:00:04]} 99. gxf5+ {[%clk 0:00:08]}  Kxf5 {[%clk 0:00:05]} 100. Ke3 {[%clk 0:00:08]}  Kg4 {[%clk 0:00:05]} 101. Kf2 {[%clk 0:00:08]}  Kxh4 {[%clk 0:00:06]} 102. Kg1 {[%clk 0:00:09]}  Kg3 {[%clk 0:00:05]} 103. Kh1 {[%clk 0:00:10]}  g6 {[%clk 0:00:05]} 104. Kg1 {[%clk 0:00:10]}  g5 {[%clk 0:00:04]} 105. Kh1 {[%clk 0:00:11]}  g4 {[%clk 0:00:03]} 106. Kg1 {[%clk 0:00:11]}  Kh3 {[%clk 0:00:02]} 107. Kf2 {[%clk 0:00:05]}  Kh2 {[%clk 0:00:02]} 0-1

[Event "January 9 Early 2024"]
[Site "https://www.chess.com"]
[Date "2024.01.11"]
[Round "10"]
[White "Rakitin, Daniil"]
[Black "Makaraci, Tunahan"]
[Result "1/2-1/2"]
[Board "1"]
[TimeControl "180+1"]
[WhiteFideId "24219762"]
[BlackFideId "6356559"]
[WhiteElo "2678"]
[BlackElo "2558"]
[WhiteTeam "RUS"]
[BlackTeam "TUR"]
[WhiteClock "0:02:10"]
[BlackClock "0:02:54"]

1. e4 {[%clk 0:02:13]}  c5 {[%clk 0:02:58]} 2. Nf3 {[%clk 0:02:13]}  Nc6 {[%clk 0:02:58]} 3. Bb5 {[%clk 0:02:14]}  d6 {[%clk 0:02:58]} 4. O-O {[%clk 0:02:14]}  Bd7 {[%clk 0:02:58]} 5. Re1 {[%clk 0:02:15]}  Nf6 {[%clk 0:02:57]} 6. c3 {[%clk 0:02:15]}  a6 {[%clk 0:02:58]} 7. Bf1 {[%clk 0:02:14]}  Bg4 {[%clk 0:02:58]} 8. h3 {[%clk 0:02:14]}  Bxf3 {[%clk 0:02:58]} 9. Qxf3 {[%clk 0:02:15]}  e6 {[%clk 0:02:56]} 10. Qg3 {[%clk 0:02:12]}  Nh5 {[%clk 0:02:54]} 11. Qf3 {[%clk 0:02:12]}  Nf6 {[%clk 0:02:54]} 12. Qg3 {[%clk 0:02:09]}  Nh5 {[%clk 0:02:54]} 13. Qf3 {[%clk 0:02:10]}  Nf6 {[%clk 0:02:54]} 1/2-1/2

[Event "January 9 Early 2024"]
[Site "https://www.chess.com"]
[Date "2024.01.11"]
[Round "10"]
[White "Gokerkan, Cem Kaan"]
[Black "Vela Frago, Alberto"]
[Result "1-0"]
[Board "3"]
[TimeControl "180+1"]
[WhiteFideId "6336760"]
[BlackFideId "24531685"]
[WhiteElo "2811"]
[BlackElo "2404"]
[WhiteTeam "TUR"]
[BlackTeam "ESP"]
[WhiteClock "0:02:05"]
[BlackClock "0:01:52"]

1. e4 {[%clk 0:03:00]}  e5 {[%clk 0:02:58]} 2. Nf3 {[%clk 0:03:00]}  Nc6 {[%clk 0:02:58]} 3. Bc4 {[%clk 0:03:01]}  Nf6 {[%clk 0:02:58]} 4. d4 {[%clk 0:03:00]}  exd4 {[%clk 0:02:54]} 5. e5 {[%clk 0:03:01]}  d5 {[%clk 0:02:54]} 6. Bb5 {[%clk 0:03:00]}  Ne4 {[%clk 0:02:52]} 7. Nxd4 {[%clk 0:03:01]}  Bd7 {[%clk 0:02:51]} 8. Bxc6 {[%clk 0:03:00]}  bxc6 {[%clk 0:02:49]} 9. O-O {[%clk 0:03:01]}  Nc5 {[%clk 0:02:41]} 10. f4 {[%clk 0:02:58]}  Be7 {[%clk 0:02:35]} 11. f5 {[%clk 0:02:56]}  Bg5 {[%clk 0:02:23]} 12. e6 {[%clk 0:02:49]}  fxe6 {[%clk 0:02:09]} 13. Qh5+ {[%clk 0:02:48]}  Ke7 {[%clk 0:01:54]} 14. Bxg5+ {[%clk 0:02:05]}  Kd6 {[%clk 0:01:52]} 1-0

[Event "January 9 Early 2024"]
[Site "https://www.chess.com"]
[Date "2024.01.11"]
[Round "10"]
[White "Radibratovic, Predrag"]
[Black "Iskusnyh, Sergei"]
[Result "0-1"]
[Board "11"]
[TimeControl "180+1"]
[WhiteFideId "902012"]
[BlackFideId "4120027"]
[WhiteElo "2503"]
[BlackElo "2675"]
[WhiteTeam "SRB"]
[BlackTeam "RUS"]
[WhiteClock "0:02:13"]
[BlackClock "0:01:17"]

1. d4 {[%clk 0:03:00]}  d5 {[%clk 0:02:55]} 2. Bf4 {[%clk 0:03:00]}  Nf6 {[%clk 0:02:53]} 3. e3 {[%clk 0:03:01]}  c5 {[%clk 0:02:53]} 4. c3 {[%clk 0:03:01]}  Nc6 {[%clk 0:02:49]} 5. Nd2 {[%clk 0:03:01]}  cxd4 {[%clk 0:02:48]} 6. cxd4 {[%clk 0:03:00]}  Bf5 {[%clk 0:02:46]} 7. Ngf3 {[%clk 0:03:00]}  e6 {[%clk 0:02:45]} 8. Be2 {[%clk 0:03:01]}  Be7 {[%clk 0:02:44]} 9. O-O {[%clk 0:03:01]}  O-O {[%clk 0:02:43]} 10. h3 {[%clk 0:03:01]}  Qa5 {[%clk 0:02:35]} 11. a3 {[%clk 0:02:57]}  Rfc8 {[%clk 0:02:34]} 12. b4 {[%clk 0:02:55]}  Qd8 {[%clk 0:02:33]} 13. Rc1 {[%clk 0:02:54]}  Ne4 {[%clk 0:01:56]} 14. Qb3 {[%clk 0:02:47]}  Bd6 {[%clk 0:01:32]} 15. Bxd6 {[%clk 0:02:39]}  Nxd6 {[%clk 0:01:30]} 16. Rc3 {[%clk 0:02:36]}  b5 {[%clk 0:01:29]} 17. Rfc1 {[%clk 0:02:28]}  Nc4 {[%clk 0:01:29]} 18. a4 {[%clk 0:02:26]}  a6 {[%clk 0:01:28]} 19. a5 {[%clk 0:02:22]}  Qd6 {[%clk 0:01:28]} 20. Nxc4 {[%clk 0:02:20]}  dxc4 {[%clk 0:01:27]} 21. Qa3 {[%clk 0:02:14]}  Qxb4 {[%clk 0:01:26]} 22. Qa1 {[%clk 0:02:13]}  Qxa5 {[%clk 0:01:23]} 23. Ne5 {[%clk 0:02:11]}  Qxa1 {[%clk 0:01:21]} 24. Rxa1 {[%clk 0:02:11]}  Nxe5 {[%clk 0:01:21]} 25. dxe5 {[%clk 0:02:12]}  f6 {[%clk 0:01:16]} 26. exf6 {[%clk 0:02:12]}  gxf6 {[%clk 0:01:17]} 27. f3 {[%clk 0:02:12]}  e5 {[%clk 0:01:17]} 28. e4 {[%clk 0:02:13]}  Be6 {[%clk 0:01:17]} 0-1

[Event "January 9 Early 2024"]
[Site "https://www.chess.com"]
[Date "2024.01.11"]
[Round "10"]
[White "Sava, Ana-Maria"]
[Black "Nikulina, Alena"]
[Result "0-1"]
[Board "13"]
[TimeControl "180+1"]
[WhiteFideId "1213504"]
[BlackFideId "4172051"]
[WhiteElo "1830"]
[BlackElo "2120"]
[WhiteTeam "ROU"]
[BlackTeam "RUS"]
[WhiteClock "0:01:36"]
[BlackClock "0:01:43"]

1. e4 {[%clk 0:03:00]}  c5 {[%clk 0:02:59]} 2. d4 {[%clk 0:03:00]}  cxd4 {[%clk 0:02:59]} 3. Qxd4 {[%clk 0:03:00]}  Nc6 {[%clk 0:02:59]} 4. Qe3 {[%clk 0:03:00]}  Nf6 {[%clk 0:02:56]} 5. Bd3 {[%clk 0:02:56]}  e6 {[%clk 0:02:54]} 6. Nc3 {[%clk 0:02:56]}  Bb4 {[%clk 0:02:54]} 7. Bd2 {[%clk 0:02:56]}  O-O {[%clk 0:02:53]} 8. h3 {[%clk 0:02:53]}  d5 {[%clk 0:02:53]} 9. exd5 {[%clk 0:02:42]}  Nxd5 {[%clk 0:02:52]} 10. Nxd5 {[%clk 0:02:41]}  Bxd2+ {[%clk 0:02:50]} 11. Qxd2 {[%clk 0:02:41]}  Qxd5 {[%clk 0:02:50]} 12. Nf3 {[%clk 0:02:39]}  Ne5 {[%clk 0:02:35]} 13. Nxe5 {[%clk 0:02:13]}  Qxe5+ {[%clk 0:02:34]} 14. Qe2 {[%clk 0:02:11]}  Qxb2 {[%clk 0:02:31]} 15. O-O {[%clk 0:02:11]}  b6 {[%clk 0:02:20]} 16. Qe4 {[%clk 0:02:11]}  f5 {[%clk 0:02:16]} 17. Qxa8 {[%clk 0:02:10]}  e5 {[%clk 0:01:53]} 18. Qd5+ {[%clk 0:02:08]}  Kh8 {[%clk 0:01:54]} 19. Qxe5 {[%clk 0:02:07]}  Qxe5 {[%clk 0:01:53]} 20. Rae1 {[%clk 0:02:01]}  Qd5 {[%clk 0:01:50]} 21. Re7 {[%clk 0:01:38]}  Bb7 {[%clk 0:01:45]} 22. f3 {[%clk 0:01:37]}  Qc5+ {[%clk 0:01:43]} 23. Kh2 {[%clk 0:01:36]}  Qxe7 {[%clk 0:01:43]} 0-1

[Event "January 9 Early 2024"]
[Site "https://www.chess.com"]
[Date "2024.01.11"]
[Round "10"]
[White "Smirnov, Timofey"]
[Black "Cardozo Munar, Carlos Eduardo"]
[Result "0-1"]
[Board "18"]
[TimeControl "180+1"]
[WhiteFideId "24176427"]
[BlackFideId "4409477"]
[WhiteElo "1998"]
[BlackElo "2218"]
[WhiteTeam "RUS"]
[BlackTeam "COL"]
[WhiteClock "0:01:12"]
[BlackClock "0:01:47"]

1. d4 {[%clk 0:03:00]}  g6 {[%clk 0:03:00]} 2. e4 {[%clk 0:03:00]}  Bg7 {[%clk 0:02:59]} 3. Nc3 {[%clk 0:03:00]}  c5 {[%clk 0:02:56]} 4. Be3 {[%clk 0:02:45]}  Nc6 {[%clk 0:02:55]} 5. Nf3 {[%clk 0:02:39]}  cxd4 {[%clk 0:02:49]} 6. Nxd4 {[%clk 0:02:38]}  Nf6 {[%clk 0:02:48]} 7. Nxc6 {[%clk 0:02:37]}  bxc6 {[%clk 0:02:48]} 8. Qd2 {[%clk 0:02:37]}  O-O {[%clk 0:02:48]} 9. Bc4 {[%clk 0:02:31]}  a5 {[%clk 0:02:44]} 10. a3 {[%clk 0:02:31]}  Ba6 {[%clk 0:02:44]} 11. Bxa6 {[%clk 0:02:28]}  Rxa6 {[%clk 0:02:44]} 12. Rd1 {[%clk 0:02:26]}  d5 {[%clk 0:02:24]} 13. exd5 {[%clk 0:02:25]}  cxd5 {[%clk 0:02:25]} 14. O-O {[%clk 0:02:20]}  e6 {[%clk 0:02:21]} 15. Bd4 {[%clk 0:02:19]}  Qb8 {[%clk 0:02:17]} 16. b3 {[%clk 0:02:15]}  Rc8 {[%clk 0:02:16]} 17. a4 {[%clk 0:02:12]}  Rac6 {[%clk 0:02:15]} 18. Nb5 {[%clk 0:01:56]}  Rxc2 {[%clk 0:02:12]} 19. Qxa5 {[%clk 0:01:56]}  Qf4 {[%clk 0:02:05]} 20. Be3 {[%clk 0:01:40]}  Qh4 {[%clk 0:02:00]} 21. Rc1 {[%clk 0:01:29]}  Ng4 {[%clk 0:01:52]} 22. h3 {[%clk 0:01:17]}  Rxc1 {[%clk 0:01:52]} 23. Rxc1 {[%clk 0:01:14]}  Rxc1+ {[%clk 0:01:49]} 24. Bxc1 {[%clk 0:01:13]}  Qxf2+ {[%clk 0:01:48]} 25. Kh1 {[%clk 0:01:12]}  Qf1# {[%clk 0:01:47]} 0-1

[Event "January 9 Early 2024"]
[Site "https://www.chess.com"]
[Date "2024.01.11"]
[Round "10"]
[White "Cruz, William Ferreira Da"]
[Black "Shubenkova, Veronika"]
[Result "0-1"]
[Board "19"]
[TimeControl "180+1"]
[WhiteFideId "2118050"]
[BlackFideId "44124040"]
[WhiteElo "2352"]
[BlackElo "2604"]
[WhiteTeam "BRA"]
[BlackTeam "RUS"]
[WhiteClock "0:01:02"]
[BlackClock "0:02:04"]

1. d4 {[%clk 0:03:00]}  d5 {[%clk 0:03:00]} 2. c4 {[%clk 0:02:59]}  e6 {[%clk 0:03:00]} 3. Nc3 {[%clk 0:02:59]}  f5 {[%clk 0:03:00]} 4. cxd5 {[%clk 0:02:58]}  exd5 {[%clk 0:03:00]} 5. Bf4 {[%clk 0:02:58]}  Nf6 {[%clk 0:03:00]} 6. e3 {[%clk 0:02:58]}  c6 {[%clk 0:03:00]} 7. Nf3 {[%clk 0:02:58]}  Bd6 {[%clk 0:03:00]} 8. Bxd6 {[%clk 0:02:52]}  Qxd6 {[%clk 0:03:00]} 9. Ne5 {[%clk 0:02:52]}  O-O {[%clk 0:02:59]} 10. Bd3 {[%clk 0:02:51]}  Ne4 {[%clk 0:02:54]} 11. O-O {[%clk 0:02:43]}  Nd7 {[%clk 0:02:54]} 12. f4 {[%clk 0:02:40]}  Nxe5 {[%clk 0:02:52]} 13. fxe5 {[%clk 0:02:39]}  Qh6 {[%clk 0:02:48]} 14. Bxe4 {[%clk 0:02:36]}  dxe4 {[%clk 0:02:45]} 15. Qe2 {[%clk 0:02:26]}  Be6 {[%clk 0:02:44]} 16. b4 {[%clk 0:02:24]}  b5 {[%clk 0:02:38]} 17. Rf4 {[%clk 0:01:58]}  Bc4 {[%clk 0:02:34]} 18. Qf2 {[%clk 0:01:56]}  Qe6 {[%clk 0:02:31]} 19. Qh4 {[%clk 0:01:43]}  a5 {[%clk 0:02:27]} 20. bxa5 {[%clk 0:01:35]}  Rxa5 {[%clk 0:02:27]} 21. g4 {[%clk 0:01:34]}  Raa8 {[%clk 0:02:21]} 22. gxf5 {[%clk 0:01:32]}  Rxf5 {[%clk 0:02:21]} 23. Nxe4 {[%clk 0:01:30]}  Raf8 {[%clk 0:02:10]} 24. Ng5 {[%clk 0:01:23]}  Qg6 {[%clk 0:02:10]} 25. Rg4 {[%clk 0:01:14]}  h5 {[%clk 0:02:09]} 26. Rg3 {[%clk 0:01:10]}  Rf1+ {[%clk 0:02:06]} 27. Rxf1 {[%clk 0:01:08]}  Rxf1+ {[%clk 0:02:07]} 28. Kg2 {[%clk 0:01:07]}  Qc2+ {[%clk 0:02:06]} 29. Kh3 {[%clk 0:01:07]}  Qf5+ {[%clk 0:02:06]} 30. Kg2 {[%clk 0:01:06]}  Rg1+ {[%clk 0:02:04]} 31. Kxg1 {[%clk 0:01:02]}  Qf1# {[%clk 0:02:04]} 0-1